Cogmind - Beta 9.3 @@@ ROGUE MODE // 2019.12.18 @ 23:51:53 Player: HybriD Result: Self-destructed Performance ------------- Evolutions (1) 500 Regions Visited (3) 600 Robots Destroyed (0) 0 Value Destroyed (0) 0 Prototype IDs (2) 40 Alien Tech Used (0) 0 Bonus (200) 200 TOTAL SCORE: 1340 Bonus ------- Pacifist 200 Cogmind --------- Core Integrity 247/400 Matter 300/300 Energy 100/100 System Corruption 0% Temperature Cool (0) Movement Core (150) Ox2 Location -9/Materials Parts ------- > --- POWER (1) -------- (None) > --- PROPULSION (3) --- (None) > --- UTILITY (3) ------ Medium Storage Unit Signal Interpreter > --- WEAPON (2) ------- (None) > --- INVENTORY (8) ---- (None) Peak State ------------ > --- POWER ------------ Light Ion Engine > --- PROPULSION ------- Wheel Wheel > --- UTILITY ---------- Small Storage Unit Medium Storage Unit > --- WEAPON ----------- EM Pulse Gun Assault Rifle > --- INVENTORY -------- Light Ion Engine Assault Rifle [Rating: 7] Favorites ----------- Power Light Ion Engine Engine Light Ion Engine Propulsion Wheel Wheel Wheel Utility Medium Storage Unit Storage Medium Storage Unit Processor Signal Interpreter Weapon Assault Rifle Energy Gun EM Pulse Gun Ballistic Gun Assault Rifle Build | -11 -10 -10 -9 ------- Run | Scr Mat Min Mat Slots Evolved 2 | . . . 2 Power . | . . . . Propulsion 1 | . . . 1 Utility 1 | . . . 1 Weapon . | . . . . Parts Attached 15 | 6 3 3 3 Power 3 | 1 . . 2 Engine 3 | 1 . . 2 Core . | . . . . Reactor . | . . . . Propulsion 2 | 2 . . . Treads . | . . . . Leg . | . . . . Wheel 2 | 2 . . . Hover . | . . . . Flight . | . . . . Utility 5 | 1 2 1 1 Device . | . . . . Storage 4 | 1 1 1 1 Processor 1 | . 1 . . Hackware . | . . . . Protection . | . . . . Artifact . | . . . . Weapon 5 | 2 1 2 . Energy Gun 3 | 1 1 1 . Energy Cannon . | . . . . Ballistic Gun 2 | 1 . 1 . Ballistic Cannon . | . . . . Launcher . | . . . . Special Weapon . | . . . . Impact Weapon . | . . . . Slashing Weapon . | . . . . Piercing Weapon . | . . . . Special Melee Weapon . | . . . . Unidentified Prototypes . | . . . . Parts Lost 7 | . . 5 2 Power 2 | . . 1 1 Propulsion 2 | . . 2 . Utility . | . . . . Weapon 3 | . . 2 1 Highest Loss Streak 5 | . . 5 2 Average Slot Usage (%) 74 | . 89 78 31 Engine 11 | . 14 9 5 Wheel 20 | . 28 21 . Storage 12 | . 14 11 7 Processor 7 | . 4 14 11 Energy Gun 10 | . 14 9 . Ballistic Gun 12 | . 14 11 7 Naked Turns . | . . . . Heaviest Build 15 | 11 15 14 10 Greatest Support 20 | 20 20 20 3 Greatest Overweight (x) 3 | . . 3 3 Average Overweight (x) . | . . . . Largest Inventory Capacity 10 | 6 10 8 8 Average Capacity 7 | 5 7 7 6 Most Carried 4 | 4 3 4 2 Average Carried 1 | 1 2 1 . Final Capacity 8 | 6 8 8 8 Final Carried 2 | 2 2 1 . Class Distribution -------------------- 100% | Mutant Dominant Class ---------------- Mutant | -10/Materials Mutant | -10/Mines Mutant | -9/Materials Resources | -11 -10 -10 -9 ----------- Run | Scr Mat Min Mat Matter Collected 332 | 192 . . 140 Remotely . | . . . . Salvage Created . | . . . . Parts . | . . . . Haulers Intercepted . | . . . . Recyclers Shooed . | . . . . Parts Field Recycled . | . . . . Retrieved Matter . | . . . . Parts Self-Destructed . | . . . . Prevented . | . . . . Kills | -11 -10 -10 -9 ------- Run | Scr Mat Min Mat Combat Hostiles Destroyed . | . . . . Classes Destroyed . | . . . . Best Kill Streak . | . . . . Combat Bots Only . | . . . . Max Kills in Single Turn . | . . . . Gunslinging . | . . . . Exploded . | . . . . Melee . | . . . . Uniques/NPCs Destroyed . | . . . . Combat | -11 -10 -10 -9 -------- Run | Scr Mat Min Mat Damage Taken 855 | . . 510 345 Core 251 | . . 98 153 Absorbed by Shields . | . . . . Core Remaining (%) 80 | 100 . 60 . Volleys Fired 4 | . 1 2 1 Largest 2 | . 2 2 1 Hottest 60 | . 60 60 20 Shots Fired 7 | . 2 4 1 Gun 7 | . 2 4 1 Cannon . | . . . . Launcher . | . . . . Special . | . . . . Kinetic 4 | . 1 2 1 Thermal 3 | . 1 2 . Explosive . | . . . . Electromagnetic . | . . . . Robot Hit Streak 2 | . . 2 . Robot Miss Streak 1 | . . 1 1 Penetration Max . | . . . . Secondary Targets . | . . . . Shots Hit Robots 3 | . . 3 . Core Hits 4 | . . 1 3 Critical Hits . | . . . . Critical Kills . | . . . . Critical Parts Destroyed . | . . . . Melee Attacks . | . . . . Impact . | . . . . Slashing . | . . . . Piercing . | . . . . Sneak Attacks . | . . . . Combat Hostiles . | . . . . Follow-up Attacks . | . . . . Damage Inflicted 52 | . . 36 16 Guns 36 | . . 36 . Cannons . | . . . . Explosions . | . . . . Melee . | . . . . Ramming 16 | . . . 16 Kinetic 13 | . . 13 . Thermal 23 | . . 23 . Explosive . | . . . . Electromagnetic . | . . . . Impact . | . . . . Slashing . | . . . . Piercing . | . . . . Highest Corruption . | . . . . Average Corruption . | . . . . Corruption Purged . | . . . . Overload Shots . | . . . . Overflow Damage . | . . . . Projectiles . | . . . . Explosions . | . . . . Melee . | . . . . Knockbacks . | . . . . Impact . | . . . . Kinetic . | . . . . Secondary . | . . . . Self-Inflicted Damage 6 | . . . 6 Shots . | . . . . Rammed 10 | . . . 10 Targets Rammed 10 | . . . 10 Kicked . | . . . . Crushed . | . . . . Highest Temperature . | . . . . Average Temperature . | . . . . Received Heat Transfer 90 | . . . 90 Siege Activations . | . . . . Robots Corrupted . | . . . . Combat Hostiles . | . . . . Parts Fried . | . . . . Impact Corruptions . | . . . . Robots Melted . | . . . . Combat Hostiles . | . . . . Parts Melted . | . . . . Heat Transferred 50 | . . 50 . Parts Sabotaged . | . . . . Parts Stolen . | . . . . Parts Stripped . | . . . . Power Chain Reactions . | . . . . Missiles Intercepted . | . . . . Alert | -11 -10 -10 -9 ------- Run | Scr Mat Min Mat Peak Influence 71 | . 71 27 24 Average Influence 21 | . 32 18 11 Maximum Alert Level . | . . . . Low Security (%) 100 | 100 100 100 100 Level 1 . | . . . . Level 2 . | . . . . Level 3 . | . . . . Level 4 . | . . . . Level 5 . | . . . . High Security . | . . . . Max Security . | . . . . Squads Dispatched 2 | . 2 . . Investigation . | . . . . Extermination . | . . . . Reinforcement 2 | . 2 . . Assault . | . . . . Garrison . | . . . . Intercept . | . . . . Construction Impeded . | . . . . Haulers Reinforced . | . . . . Stealth | -11 -10 -10 -9 --------- Run | Scr Mat Min Mat Distress Signals 1 | . 1 . . Communications Jammed . | . . . . Distress Signals . | . . . . Times Spotted 16 | . 7 6 3 Peak Tracking Total 5 | . 5 5 3 Tactical Retreats 2 | . 1 1 . Traps | -11 -10 -10 -9 ------- Run | Scr Mat Min Mat Traps Triggered . | . . . . Indirectly . | . . . . Trap Hack Attempts . | . . . . Triggered . | . . . . Disarmed . | . . . . Reprogrammed . | . . . . Reused . | . . . . Traps Extracted . | . . . . Installed 1 | . . 1 . Triggered . | . . . . Machines | -11 -10 -10 -9 ---------- Run | Scr Mat Min Mat Machines Disabled . | . . . . Max in Single Turn . | . . . . Machines Sabotaged . | . . . . Garrisons Compromised . | . . . . Overloaded Fab Kills . | . . . . Fab Network Shutdowns . | . . . . Hacking | -11 -10 -10 -9 --------- Run | Scr Mat Min Mat Machines Accessed 4 | . 3 . 1 Terminals 4 | . 3 . 1 Fabricators . | . . . . Repair Stations . | . . . . Recycling Units . | . . . . Scanalyzers . | . . . . Garrison Access . | . . . . Total Hacks 16 | . 13 . 3 Successful 8 | . 6 . 2 Failed 8 | . 7 . 1 Catastrophic 2 | . 1 . 1 Database Lockouts . | . . . . Manual . | . . . . Terminals 16 | . 13 . 3 Fabricators . | . . . . Repair Stations . | . . . . Recycling Units . | . . . . Scanalyzers . | . . . . Garrison Access . | . . . . Terminal Hacks 8 | . 6 . 2 Robot Analysis 1 | . 1 . . Prototype ID Bank 1 | . . . 1 Branch Access Points 1 | . 1 . . Emergency Access Points 1 | . . . 1 Terminal Index 1 | . 1 . . Locate Traps 2 | . 2 . . Recall Assault 1 | . 1 . . Fabricator Hacks . | . . . . Repair Station Hacks . | . . . . Recycling Unit Hacks . | . . . . Scanalyzer . | . . . . Garrison Access Hacks . | . . . . Unauthorized Hacks . | . . . . Terminals . | . . . . Fabricators . | . . . . Repair Stations . | . . . . Recycling Units . | . . . . Scanalyzers . | . . . . Garrison Access . | . . . . Data Cores Recovered . | . . . . Used . | . . . . Hacking Detections 2 | . 1 . 1 Full Trace Events . | . . . . Feedback Events . | . . . . Feedback Blocked . | . . . . Robot Schematics Acquired . | . . . . Robots Built . | . . . . Matter . | . . . . Time . | . . . . Total Robot Build Rating . | . . . . Part Schematics Acquired . | . . . . Parts Built . | . . . . Matter . | . . . . Time . | . . . . Total Part Build Rating . | . . . . Parts Repaired . | . . . . Time . | . . . . Parts Recycled . | . . . . Recycled Matter . | . . . . Retrieved Matter . | . . . . Retrieved Components . | . . . . Parts Scanalyzed . | . . . . Part Schematics Acquired . | . . . . Parts Damaged . | . . . . Bothacking | -11 -10 -10 -9 ------------ Run | Scr Mat Min Mat Used RIF Installer . | . . . . Robots Hacked . | . . . . Non-combat . | . . . . Combat . | . . . . Robot Hacks Applied . | . . . . Relay Couplers Released . | . . . . Robots Rewired . | . . . . Allies Hacked . | . . . . Hacks Repelled . | . . . . Allies | -11 -10 -10 -9 -------- Run | Scr Mat Min Mat Total Allies . | . . . . Largest Group . | . . . . Highest-Rated Group . | . . . . Highest-Rated Ally . | . . . . Total Orders . | . . . . Ally Attacks . | . . . . Total Damage . | . . . . Kills . | . . . . Allies Corrupted . | . . . . Allies Melted . | . . . . Intel | -11 -10 -10 -9 ------- Run | Scr Mat Min Mat Robot Analysis Total 1 | . 1 . . Derelict Logs Recovered . | . . . . Drone Launches . | . . . . Drone Recoveries . | . . . . Exploration | -11 -10 -10 -9 ------------- Run | Scr Mat Min Mat Turns Passed 324 | 40 168 53 63 Spaces Moved 323 | 36 198 48 41 Core 52 | 8 . 3 41 Treads . | . . . . Legs . | . . . . Wheels 271 | 28 198 45 . Hover . | . . . . Flight . | . . . . Fastest Speed 50 | 50 80 80 50 Average Speed 79 | 73 80 87 75 Slowest Speed 200 | 80 80 200 200 Overloaded Moves . | . . . . Propulsion Burnouts . | . . . . Robots Hopped . | . . . . Cave-ins Triggered . | . . . . Exploration Rate (%) 16 | 4 38 18 6 Regions Visited 3 Branch Regions 1 Pre-discovered Areas . | . . . . Known Exits Taken 2 | . 1 1 . Unknown Exits Taken 1 | 1 . . . Scrap Searched . | . . . . Spaces Dug . | . . . . Terrain Destroyed . | . . . . Melee . | . . . . Projectile . | . . . . AOE . | . . . . Actions | -11 -10 -10 -9 --------- Run | Scr Mat Min Mat Total 374 | 49 206 57 62 Wait 3 | . . . 3 Move 320 | 35 197 47 41 Hop . | . . . . Pick Up 13 | 8 3 1 1 Fast Attach . | . . . . Attach 15 | 6 3 3 3 Detach 4 | . . 2 2 Swap . | . . . . Drop 4 | . 2 1 1 Fire 4 | . 1 2 1 Melee . | . . . . Ram 10 | . . . 10 Kick . | . . . . Crush . | . . . . Escape Stasis . | . . . . Rewire . | . . . . Trap 1 | . . 1 . Miscellaneous . | . . . . Route ------- -11/Scrapyard -10/Materials (discovered 2 exits: *Min x2) -10/Mines -9/Materials History --------- Turn | Location | Event 22 | -11/Scrapyard | Discovered new exit (range 16) 41 | -11/Scrapyard | Entered Materials 66 | -10/Materials | Identified exit to Mines 209 | -10/Materials | Entered Mines 210 | -10/Mines | Assembled infested the area 210 | -10/Mines | Found a hidden stash of uninstalled traps 215 | -10/Mines | Assisted by a Guerilla fighting off Assembled 254 | -10/Mines | Discovered new exit (range 9) 260 | -10/Mines | Identified exit to Materials 262 | -10/Mines | Entered Materials 262 | -9/Materials | Evolved 2 slots: Propulsion x1, Utility x1 289 | -9/Materials | Lost 5 parts (1p2n2w) 320 | -9/Materials | Build established: Mutant 325 | -9/Materials | Self-destructed Last Messages --------------- Found 1 emergency access door: (47,68) Map updated. 00284_ Dropped Lgt. Ion Engine. 00285_ Acquired Imp. Ion Engine. 00291_ K-01 Serf cleans the Terminal. 00291_ Slammed into W-16 Scout. 00293_ Acquired 117 matter. 00299_ Acquired 10 matter. 00304_ Acquired 3 matter. 00304_ Assault Rifle destroyed. 00305_ Slammed into Y-45 Defender. 00315_ Destabilizing: Short circuit. 00315_ Broken Imp. Ion Engine permanently disabled. 00316_ Material Processor disabled. 00317_ Slammed into Y-45 Defender. 00321_ Broken Imp. Ion Engine destroyed. 00322_ Slammed into Y-45 Defender. 00324_ Destabilizing: System interference. 00324_ Signal Interpreter temporarily disabled. Map ----- +----------------------------------------------------+ | ?????????????????????????????????????????????????? | | ?????????????????????????????????????????????????? | | ?????????????????????????????????????????????????? | | ?????????????????????????????????????????????????? | | ?????????????????????????????????????????????????? | | ?????????????????????????????????????????????????? | | ?????????????????????????????????????????????????? | | ?????????????????????????????????????????????????? | | ?????????????????????????????????????????????????? | | ?????????????????????????? ? ??????????????????? | | ?????????????????????????? ??????????????????? | | ?????????????????????????? T ??????????????????? | | ?????????????????????????? ??????????????????? | | ?????????????????????????? ??????????????????? | | ??????????????????????????# #??????????????????? | | ??????????????????????????# #??????????????????? | | ??????????????????????????# #??????????????????? | | ?????????????????########## #??????????????????? | | ?????????????????# # #??????????????????? | | ?????????????????# """ # #??????????????????? | | ?????????????????# """"" # #?###+####?????????? | | ?????????????????# """"" # #? ??????????? | | ?????????????????# """ " # # """ "??????????? | | ?????????????????# ""% # # """ "??????????? | | ?????????????????# %%%+ + """ "??????????? | | ?????????????????# Y%@# # ???????? | | ?????????????????# %%Y# ## ##########??????? | | ?????????????????########## ####???#######?????? | | ?????????????????????????# ####### #?????? | | ?????????????????????????# #?????? | | ?????????????????????????# T #?????? | | ?????????????????????????# #?????? | | ?????????????????????????# *####### #?????? | | ?????????????????????????#######?????## ##?????? | | ??????????????????????????????????????# #??????? | | ????????????????????????????########### #??????? | | ????????????????????????? #??????? | | ????????????????????????? #??????? | | ????????????????????????????########### #??????? | | ??????????????????????????????????????# ???? | | ??????????????????????????????????????# #######??? | | ??????????????????????????????????????# ?????????? | | ??????????????????????????????????????# ?????????? | | ??????????????????????????????????????# ?????????? | | ??????????????????????????????????????# ?????????? | | ??????????????????????????????????????# ?????????? | | ?????????????????????????????????????? ?????????? | | ?????????????????????????????????????? ?????????? | | ?????????????????????????????????????? ??????????? | | ??????????????????????????????????????#??????????? | +----------------------------------------------------+ Best States ------------- Heat Dissipation 28 Energy Generation 12 Energy Capacity 265 Matter Stores 300 Matter Capacity 300 Sight Range 16 Terrain Scan Density 10 Evasion (%) 50 Item Schematics ----------------- None Robot Schematics ------------------ None Fabricated ------------ Nothing Alien Tech Used ----------------- None Achievements -------------- None Challenges ------------ None Game ------ Seed SystemHackingGreatsword Manual? 0 Play Time 00:07:48 Cumulative 92.8 hours Start 2019.12.18 @ 23:44:24 End 2019.12.18 @ 23:51:53 Sessions 1 Manual Loads 0 Difficulty Rogue Special Mode None Game No. 87 Rogue 87 Adventurer 0 Explorer 0 Win Type - Total 0 Types 0/0/0/0/0/0/0 Lore% 44 Gallery% 61 Achievement% 28 Wizard Run 0 Options --------- ASCII 0 Keyboard 0 Movement Mouse Keybinds 0 Fullscreen 2 Font 18/Terminus Map View 76x50 Tactical HUD 1 Map Filters NONE Filters NONE Steam 1 RUN: 8d62370e-f71c-42e1-9c47-723a5975c796